Workbook

Sheet ГРАФИКИ
A1: ТЕКУЩАЯ СТОИМОСТЬ ПОРТФЕЛЯ | B1: ОБЩИЙ РЕЗУЛЬТАТ С ДИВИДЕНДАМИ И КОМИССИЯМИ | C1: СУММА ВЛОЖЕНИЙ | D1: КОЛИЧЕСТВО СВОБОДНЫХ СРЕДСТВ | H1: TRUE | I1: TRUE | J1: TRUE | K1: TRUE
D2: =E2 -> 40 | E2: 40 | G2: ДАТА | H2: ТЕКУЩАЯ СТОИМОСТЬ ПОРТФЕЛЯ | I2: ОБЩИЙ РЕЗУЛЬТАТ С ДИВИДЕНДАМИ И КОМИССИЯМИ | J2: СУММА ВЛОЖЕНИЙ | K2: КОЛИЧЕСТВО СВОБОДНЫХ СРЕДСТВ
D3: =E3 -> 1 | E3: 1 | G3: 45581 | H3: =IF(H$1=TRUE,АКЦИИ!Z13,NA()) -> 6969 | I3: =IF(I$1=TRUE,АКЦИИ!AA13,NA()) -> -30 | J3: =IF(J$1=TRUE,АКЦИИ!AB13,NA()) -> 7000 | K3: =IF(K$1=TRUE,АКЦИИ!AC13,NA()) -> 1250
G4: 45582 | H4: =IF(H$1=TRUE,АКЦИИ!Z14,NA()) -> 6949 | I4: =IF(I$1=TRUE,АКЦИИ!AA14,NA()) -> -50 | J4: =IF(J$1=TRUE,АКЦИИ!AB14,NA()) -> 7000 | K4: =IF(K$1=TRUE,АКЦИИ!AC14,NA()) -> 1250
E5: =OFFSET($G$2,$E$3,,$E$2) -> 45583 | G5: 45583 | H5: =IF(H$1=TRUE,АКЦИИ!Z15,NA()) -> 6899 | I5: =IF(I$1=TRUE,АКЦИИ!AA15,NA()) -> -100 | J5: =IF(J$1=TRUE,АКЦИИ!AB15,NA()) -> 7000 | K5: =IF(K$1=TRUE,АКЦИИ!AC15,NA()) -> 1250
E6: =OFFSET($H$2,$E$3,,$E$2) -> 10844.05 | G6: 45586 | H6: =IF(H$1=TRUE,АКЦИИ!Z16,NA()) -> 10844.05 | I6: =IF(I$1=TRUE,АКЦИИ!AA16,NA()) -> -154.4 | J6: =IF(J$1=TRUE,АКЦИИ!AB16,NA()) -> 11000 | K6: =IF(K$1=TRUE,АКЦИИ!AC16,NA()) -> 5248.45
E7: =OFFSET($I$2,$E$3,,$E$2) -> -280 | G7: 45587 | H7: =IF(H$1=TRUE,АКЦИИ!Z17,NA()) -> 10718.45 | I7: =IF(I$1=TRUE,АКЦИИ!AA17,NA()) -> -280 | J7: =IF(J$1=TRUE,АКЦИИ!AB17,NA()) -> 11000 | K7: =IF(K$1=TRUE,АКЦИИ!AC17,NA()) -> 3781.45
E8: =OFFSET($J$2,$E$3,,$E$2) -> 11000 | G8: 45588 | H8: =IF(H$1=TRUE,АКЦИИ!Z18,NA()) -> 10685.95 | I8: =IF(I$1=TRUE,АКЦИИ!AA18,NA()) -> -312.5 | J8: =IF(J$1=TRUE,АКЦИИ!AB18,NA()) -> 11000 | K8: =IF(K$1=TRUE,АКЦИИ!AC18,NA()) -> 3781.45
E9: =OFFSET($K$2,$E$3,,$E$2) -> 10628.24 | G9: 45589 | H9: =IF(H$1=TRUE,АКЦИИ!Z19,NA()) -> 10628.24 | I9: =IF(I$1=TRUE,АКЦИИ!AA19,NA()) -> -371.76 | J9: =IF(J$1=TRUE,АКЦИИ!AB19,NA()) -> 11000 | K9: =IF(K$1=TRUE,АКЦИИ!AC19,NA()) -> 10628.24
G10: 45590 | H10: =IF(H$1=TRUE,АКЦИИ!Z20,NA()) -> 10624.919 | I10: =IF(I$1=TRUE,АКЦИИ!AA20,NA()) -> -375.081 | J10: =IF(J$1=TRUE,АКЦИИ!AB20,NA()) -> 11000 | K10: =IF(K$1=TRUE,АКЦИИ!AC20,NA()) -> 736.33
G11: 45593 | H11: =IF(H$1=TRUE,АКЦИИ!Z21,NA()) -> 10630.567 | I11: =IF(I$1=TRUE,АКЦИИ!AA21,NA()) -> -369.433 | J11: =IF(J$1=TRUE,АКЦИИ!AB21,NA()) -> 11000 | K11: =IF(K$1=TRUE,АКЦИИ!AC21,NA()) -> 736.33
G12: 45594 | H12: =IF(H$1=TRUE,АКЦИИ!Z22,NA()) -> 10636.215 | I12: =IF(I$1=TRUE,АКЦИИ!AA22,NA()) -> -363.785 | J12: =IF(J$1=TRUE,АКЦИИ!AB22,NA()) -> 11000 | K12: =IF(K$1=TRUE,АКЦИИ!AC22,NA()) -> 736.33
G13: 45595 | H13: =IF(H$1=TRUE,АКЦИИ!Z23,NA()) -> 10641.51 | I13: =IF(I$1=TRUE,АКЦИИ!AA23,NA()) -> -358.49 | J13: =IF(J$1=TRUE,АКЦИИ!AB23,NA()) -> 11000 | K13: =IF(K$1=TRUE,АКЦИИ!AC23,NA()) -> 736.33
G14: 45596 | H14: =IF(H$1=TRUE,АКЦИИ!Z24,NA()) -> 10643.62 | I14: =IF(I$1=TRUE,АКЦИИ!AA24,NA()) -> -356.38 | J14: =IF(J$1=TRUE,АКЦИИ!AB24,NA()) -> 11000 | K14: =IF(K$1=TRUE,АКЦИИ!AC24,NA()) -> 31.27
G15: 45597 | H15: =IF(H$1=TRUE,АКЦИИ!Z25,NA()) -> 10650.424 | I15: =IF(I$1=TRUE,АКЦИИ!AA25,NA()) -> -349.576 | J15: =IF(J$1=TRUE,АКЦИИ!AB25,NA()) -> 11000 | K15: =IF(K$1=TRUE,АКЦИИ!AC25,NA()) -> 31.27
G16: 45598 | H16: =IF(H$1=TRUE,АКЦИИ!Z26,NA()) -> 10667.812 | I16: =IF(I$1=TRUE,АКЦИИ!AA26,NA()) -> -332.188 | J16: =IF(J$1=TRUE,АКЦИИ!AB26,NA()) -> 11000 | K16: =IF(K$1=TRUE,АКЦИИ!AC26,NA()) -> 31.27
G17: 45601 | H17: =IF(H$1=TRUE,АКЦИИ!Z27,NA()) -> 10674.238 | I17: =IF(I$1=TRUE,АКЦИИ!AA27,NA()) -> -325.762 | J17: =IF(J$1=TRUE,АКЦИИ!AB27,NA()) -> 11000 | K17: =IF(K$1=TRUE,АКЦИИ!AC27,NA()) -> 31.27
G18: 45603 | H18: =IF(H$1=TRUE,АКЦИИ!Z28,NA()) -> 10767.572 | I18: =IF(I$1=TRUE,АКЦИИ!AA28,NA()) -> -232.428 | J18: =IF(J$1=TRUE,АКЦИИ!AB28,NA()) -> 11000 | K18: =IF(K$1=TRUE,АКЦИИ!AC28,NA()) -> 112.13
G19: 45604 | H19: =IF(H$1=TRUE,АКЦИИ!Z29,NA()) -> 10786.472 | I19: =IF(I$1=TRUE,АКЦИИ!AA29,NA()) -> -213.528 | J19: =IF(J$1=TRUE,АКЦИИ!AB29,NA()) -> 11000 | K19: =IF(K$1=TRUE,АКЦИИ!AC29,NA()) -> 112.13
G20: 45607 | H20: =IF(H$1=TRUE,АКЦИИ!Z30,NA()) -> 10792.142 | I20: =IF(I$1=TRUE,АКЦИИ!AA30,NA()) -> -207.858 | J20: =IF(J$1=TRUE,АКЦИИ!AB30,NA()) -> 11000 | K20: =IF(K$1=TRUE,АКЦИИ!AC30,NA()) -> 112.13
G21: 45608 | H21: =IF(H$1=TRUE,АКЦИИ!Z31,NA()) -> 10798.19 | I21: =IF(I$1=TRUE,АКЦИИ!AA31,NA()) -> -201.81 | J21: =IF(J$1=TRUE,АКЦИИ!AB31,NA()) -> 11000 | K21: =IF(K$1=TRUE,АКЦИИ!AC31,NA()) -> 112.13
G22: 45609 | H22: =IF(H$1=TRUE,АКЦИИ!Z32,NA()) -> 10803.86 | I22: =IF(I$1=TRUE,АКЦИИ!AA32,NA()) -> -196.14 | J22: =IF(J$1=TRUE,АКЦИИ!AB32,NA()) -> 11000 | K22: =IF(K$1=TRUE,АКЦИИ!AC32,NA()) -> 112.13
G23: 45610 | H23: =IF(H$1=TRUE,АКЦИИ!Z33,NA()) -> 11576.186 | I23: =IF(I$1=TRUE,АКЦИИ!AA33,NA()) -> 576.186 | J23: =IF(J$1=TRUE,АКЦИИ!AB33,NA()) -> 11000 | K23: =IF(K$1=TRUE,АКЦИИ!AC33,NA()) -> 878.03
G24: 45611 | H24: =IF(H$1=TRUE,АКЦИИ!Z34,NA()) -> 15590.73 | I24: =IF(I$1=TRUE,АКЦИИ!AA34,NA()) -> 590.73 | J24: =IF(J$1=TRUE,АКЦИИ!AB34,NA()) -> 15000 | K24: =IF(K$1=TRUE,АКЦИИ!AC34,NA()) -> 15590.73
G25: 45615 | H25: =IF(H$1=TRUE,АКЦИИ!Z35,NA()) -> 15753.83 | I25: =IF(I$1=TRUE,АКЦИИ!AA35,NA()) -> 753.83 | J25: =IF(J$1=TRUE,АКЦИИ!AB35,NA()) -> 15000 | K25: =IF(K$1=TRUE,АКЦИИ!AC35,NA()) -> 15753.83
G26: 45617 | H26: =IF(H$1=TRUE,АКЦИИ!Z36,NA()) -> 13430.07 | I26: =IF(I$1=TRUE,АКЦИИ!AA36,NA()) -> -1569.93 | J26: =IF(J$1=TRUE,АКЦИИ!AB36,NA()) -> 15000 | K26: =IF(K$1=TRUE,АКЦИИ!AC36,NA()) -> 13430.07
G27: 45618 | H27: =IF(H$1=TRUE,АКЦИИ!Z37,NA()) -> 12735.79 | I27: =IF(I$1=TRUE,АКЦИИ!AA37,NA()) -> -2264.21 | J27: =IF(J$1=TRUE,АКЦИИ!AB37,NA()) -> 15000 | K27: =IF(K$1=TRUE,АКЦИИ!AC37,NA()) -> 511.79
G28: 45621 | H28: =IF(H$1=TRUE,АКЦИИ!Z38,NA()) -> 12220.827 | I28: =IF(I$1=TRUE,АКЦИИ!AA38,NA()) -> -2779.173 | J28: =IF(J$1=TRUE,АКЦИИ!AB38,NA()) -> 15000 | K28: =IF(K$1=TRUE,АКЦИИ!AC38,NA()) -> 2.45
G29: 45622 | H29: =IF(H$1=TRUE,АКЦИИ!Z39,NA()) -> 11883.95 | I29: =IF(I$1=TRUE,АКЦИИ!AA39,NA()) -> -3116.05 | J29: =IF(J$1=TRUE,АКЦИИ!AB39,NA()) -> 15000 | K29: =IF(K$1=TRUE,АКЦИИ!AC39,NA()) -> 2.45
G30: 45623 | H30: =IF(H$1=TRUE,АКЦИИ!Z40,NA()) -> 12450.061 | I30: =IF(I$1=TRUE,АКЦИИ!AA40,NA()) -> -2549.939 | J30: =IF(J$1=TRUE,АКЦИИ!AB40,NA()) -> 15000 | K30: =IF(K$1=TRUE,АКЦИИ!AC40,NA()) -> 2.45
G31: 45624 | H31: =IF(H$1=TRUE,АКЦИИ!Z41,NA()) -> 12355.385 | I31: =IF(I$1=TRUE,АКЦИИ!AA41,NA()) -> -2644.615 | J31: =IF(J$1=TRUE,АКЦИИ!AB41,NA()) -> 15000 | K31: =IF(K$1=TRUE,АКЦИИ!AC41,NA()) -> 2.45
G32: 45625 | H32: =IF(H$1=TRUE,АКЦИИ!Z42,NA()) -> 12861.82 | I32: =IF(I$1=TRUE,АКЦИИ!AA42,NA()) -> -2138.18 | J32: =IF(J$1=TRUE,АКЦИИ!AB42,NA()) -> 15000 | K32: =IF(K$1=TRUE,АКЦИИ!AC42,NA()) -> 29.64
G33: 45628 | H33: =IF(H$1=TRUE,АКЦИИ!Z43,NA()) -> 12858.54 | I33: =IF(I$1=TRUE,АКЦИИ!AA43,NA()) -> -2141.46 | J33: =IF(J$1=TRUE,АКЦИИ!AB43,NA()) -> 15000 | K33: =IF(K$1=TRUE,АКЦИИ!AC43,NA()) -> 29.64
G34: 45629 | H34: =IF(H$1=TRUE,АКЦИИ!Z44,NA()) -> 12661.74 | I34: =IF(I$1=TRUE,АКЦИИ!AA44,NA()) -> -2338.26 | J34: =IF(J$1=TRUE,АКЦИИ!AB44,NA()) -> 15000 | K34: =IF(K$1=TRUE,АКЦИИ!AC44,NA()) -> 29.64
G35: 45630 | H35: =IF(H$1=TRUE,АКЦИИ!Z45,NA()) -> 12309.1 | I35: =IF(I$1=TRUE,АКЦИИ!AA45,NA()) -> -2690.9 | J35: =IF(J$1=TRUE,АКЦИИ!AB45,NA()) -> 15000 | K35: =IF(K$1=TRUE,АКЦИИ!AC45,NA()) -> 12309.1

Sheet ДИАГРАММА
AF2: Наименование | AG2: Процент
AF3: =АКЦИИ!H5 -> Количество свободных средств | AG3: =АКЦИИ!L5 -> 1
AF4: =АКЦИИ!B13 -> 0 | AG4: =АКЦИИ!H13 -> 0

Sheet АКЦИИ
B2: Результаты | E2: ='[1]АКЦИИ онлайн'!$B$13 -> 45630 | H2: Вложения | N2: Результаты продаж
B3: Стоимость портфеля на данный момент | E3: =SUM(Акции_покупка[Текущие результаты])+K5 -> 12309.1 | H3: Сумма вложений | K3: 15000 | N3: Общий доход/убыток,₽ | P3: =SUM(Акции_продажа[Доход, ₽]) -> -2380.393
B4: Рост стоимости акций, руб | E4: =SUM(Акции_покупка[Доход, ₽]) -> 0 | H4: Общее количество акций, шт | K4: =SUM(Акции_покупка[Количество акций]) -> 0 | N4: Средняя доходность/убыточность, % | P4: =AVERAGE(Акции_продажа[Доходность, %]) -> -0.01619799039
B5: Рост стоимости акций, % | E5: =E4/K6 ->  | H5: Количество свободных средств | K5: 12309.1 | L5: =K5/E3 -> 1
B6: Сумма полученных дивидендов | E6: =ДИВИДЕНДЫ!D2 -> 0 | H6: Акций купленно на сумму | K6: =SUM(Акции_покупка[Сумма вложений]) -> 0
B7: Общий результат + дивиденды - комиссии | E7: =E3-K3+E6 -> -2690.9
B8: Общая доходность, % | E8: =E7/K3 -> -0.1793933333 | G8: РЕЗУЛЬТАТ ЗА ПОСЛЕДНИЙ ТОРГОВЫЙ ДЕНЬ | K8: =INDEX(Таблица13[ТЕКУЩАЯ СТОИМОСТЬ ПОРТФЕЛЯ],COUNTA(Таблица13[ТЕКУЩАЯ СТОИМОСТЬ ПОРТФЕЛЯ]))-INDEX(Таблица13[ТЕКУЩАЯ СТОИМОСТЬ ПОРТФЕЛЯ],COUNTA(Таблица13[ТЕКУЩАЯ СТОИМОСТЬ ПОРТФЕЛЯ])-1) -> -352.64
A10: НУЖНО вносить данные вручную | G10: НЕ НУЖНО ничего вносить, всё считается автоматически | M10: НУЖНО вносить данные вручную | T10: НЕ НУЖНО ничего вносить
A11: АКЦИИ В ПОРТФЕЛЕ | G11: РЕЗУЛЬТАТЫ | M11: ПРОДАННЫЕ АКЦИИ | U11: РЕЗУЛЬТАТЫ | Y11: СТАТИСТИКА
A12: Код | B12: Акция | C12: Дата покупки | D12: Количество акций | E12: Стоимость покупки | F12: Текущая цена | G12: Сумма вложений | H12: Доля в портфеле | I12: Текущие результаты | J12: Доход, ₽ | K12: Доходность, % | M12: Код | N12: Акция | O12: Дата покупки | P12: Дата продажи | Q12: Количество акций | R12: Стоимость покуки | S12: Стоимость продажи | T12: Дней прошло | U12: Доход, ₽ | V12: Доходность, % | Y12: ДАТА | Z12: ТЕКУЩАЯ СТОИМОСТЬ ПОРТФЕЛЯ | AA12: ОБЩИЙ РЕЗУЛЬТАТ С ДИВИДЕНДАМИ И КОМИССИЯМИ | AB12: СУММА ВЛОЖЕНИЙ | AC12: КОЛИЧЕСТВО СВОБОДНЫХ СРЕДСТВ
G13: =D13*E13 -> 0 | H13: =Акции_покупка[[#This Row],[Текущие результаты]]/$E$3 -> 0 | I13: =F13*D13 -> 0 | J13: =(F13*D13)-G13 -> 0 | K13: =J13/G13 ->  | M13: SNGSP | N13: Сургутнфгз-п | O13: 45581 | P13: 45589 | Q13: 100 | R13: 57.5 | S13: 54.52 | T13: =Акции_продажа[[#This Row],[Дата продажи]]-Акции_продажа[[#This Row],[Дата покупки]] -> 8 | U13: =(Акции_продажа[[#This Row],[Стоимость продажи]]*Акции_продажа[[#This Row],[Количество акций]])-(Акции_продажа[[#This Row],[Стоимость покуки]]*Акции_продажа[[#This Row],[Количество акций]]) -> -298 | V13: =Акции_продажа[[#This Row],[Доход, ₽]]/(Акции_продажа[[#This Row],[Стоимость покуки]]*Акции_продажа[[#This Row],[Количество акций]]) -> -0.05182608696 | Y13: 45581 | Z13: 6969 | AA13: -30 | AB13: 7000 | AC13: 1250
M14: ROSN | N14: Роснефть | O14: 45586 | P14: 45589 | Q14: 3 | R14: 489 | S14: 466.3 | T14: =Акции_продажа[[#This Row],[Дата продажи]]-Акции_продажа[[#This Row],[Дата покупки]] -> 3 | U14: =(Акции_продажа[[#This Row],[Стоимость продажи]]*Акции_продажа[[#This Row],[Количество акций]])-(Акции_продажа[[#This Row],[Стоимость покуки]]*Акции_продажа[[#This Row],[Количество акций]]) -> -68.1 | V14: =Акции_продажа[[#This Row],[Доход, ₽]]/(Акции_продажа[[#This Row],[Стоимость покуки]]*Акции_продажа[[#This Row],[Количество акций]]) -> -0.04642126789 | Y14: 45582 | Z14: 6949 | AA14: -50 | AB14: 7000 | AC14: 1250
M15: SMLT | N15: Самолет ГК | O15: 45572 | P15: 45572 | Q15: 10 | R15: 1270 | S15: 1280 | T15: =Акции_продажа[[#This Row],[Дата продажи]]-Акции_продажа[[#This Row],[Дата покупки]] -> 0 | U15: =(Акции_продажа[[#This Row],[Стоимость продажи]]*Акции_продажа[[#This Row],[Количество акций]])-(Акции_продажа[[#This Row],[Стоимость покуки]]*Акции_продажа[[#This Row],[Количество акций]]) -> 100 | V15: =Акции_продажа[[#This Row],[Доход, ₽]]/(Акции_продажа[[#This Row],[Стоимость покуки]]*Акции_продажа[[#This Row],[Количество акций]]) -> 0.007874015748 | Y15: 45583 | Z15: 6899 | AA15: -100 | AB15: 7000 | AC15: 1250
M16: SBER | N16: Сбербанк | O16: 45581 | P16: 45610 | Q16: 3 | R16: 0.01 | S16: 255.31 | T16: =Акции_продажа[[#This Row],[Дата продажи]]-Акции_продажа[[#This Row],[Дата покупки]] -> 29 | U16: =(Акции_продажа[[#This Row],[Стоимость продажи]]*Акции_продажа[[#This Row],[Количество акций]])-(Акции_продажа[[#This Row],[Стоимость покуки]]*Акции_продажа[[#This Row],[Количество акций]]) -> 765.9 | V16: 0 | Y16: 45586 | Z16: 10844.05 | AA16: -154.4 | AB16: 11000 | AC16: 5248.45
M17: SBMM | N17: Сбер. Фонд УК Первая | O17: 45590 | P17: 45611 | Q17: 756 | R17: 14.0375 | S17: 14.1745 | T17: =Акции_продажа[[#This Row],[Дата продажи]]-Акции_продажа[[#This Row],[Дата покупки]] -> 21 | U17: =(Акции_продажа[[#This Row],[Стоимость продажи]]*Акции_продажа[[#This Row],[Количество акций]])-(Акции_продажа[[#This Row],[Стоимость покуки]]*Акции_продажа[[#This Row],[Количество акций]]) -> 103.572 | V17: =Акции_продажа[[#This Row],[Доход, ₽]]/(Акции_продажа[[#This Row],[Стоимость покуки]]*Акции_продажа[[#This Row],[Количество акций]]) -> 0.009759572573 | Y17: 45587 | Z17: 10718.45 | AA17: -280 | AB17: 11000 | AC17: 3781.45
M18: TRNFP | N18: Транснефть ап | O18: 45615 | P18: 45615 | Q18: 5 | R18: 1220 | S18: 1213 | T18: =Акции_продажа[[#This Row],[Дата продажи]]-Акции_продажа[[#This Row],[Дата покупки]] -> 0 | U18: =(Акции_продажа[[#This Row],[Стоимость продажи]]*Акции_продажа[[#This Row],[Количество акций]])-(Акции_продажа[[#This Row],[Стоимость покуки]]*Акции_продажа[[#This Row],[Количество акций]]) -> -35 | V18: =Акции_продажа[[#This Row],[Доход, ₽]]/(Акции_продажа[[#This Row],[Стоимость покуки]]*Акции_продажа[[#This Row],[Количество акций]]) -> -0.005737704918 | Y18: 45588 | Z18: 10685.95 | AA18: -312.5 | AB18: 11000 | AC18: 3781.45
M19: TRNFP | N19: Транснефть ап | O19: 45615 | P19: 45615 | Q19: 31 | R19: 1205 | S19: 1213.5 | T19: =Акции_продажа[[#This Row],[Дата продажи]]-Акции_продажа[[#This Row],[Дата покупки]] -> 0 | U19: =(Акции_продажа[[#This Row],[Стоимость продажи]]*Акции_продажа[[#This Row],[Количество акций]])-(Акции_продажа[[#This Row],[Стоимость покуки]]*Акции_продажа[[#This Row],[Количество акций]]) -> 263.5 | V19: =Акции_продажа[[#This Row],[Доход, ₽]]/(Акции_продажа[[#This Row],[Стоимость покуки]]*Акции_продажа[[#This Row],[Количество акций]]) -> 0.007053941909 | Y19: 45589 | Z19: 10628.24 | AA19: -371.76 | AB19: 11000 | AC19: 10628.24
M20: MTLRP | N20: Мечел ап | O20: 45617 | P20: 45617 | Q20: 400 | R20: 97.45 | S20: 97.25 | T20: =Акции_продажа[[#This Row],[Дата продажи]]-Акции_продажа[[#This Row],[Дата покупки]] -> 0 | U20: =(Акции_продажа[[#This Row],[Стоимость продажи]]*Акции_продажа[[#This Row],[Количество акций]])-(Акции_продажа[[#This Row],[Стоимость покуки]]*Акции_продажа[[#This Row],[Количество акций]]) -> -80 | V20: =Акции_продажа[[#This Row],[Доход, ₽]]/(Акции_продажа[[#This Row],[Стоимость покуки]]*Акции_продажа[[#This Row],[Количество акций]]) -> -0.002052334531 | Y20: 45590 | Z20: 10624.919 | AA20: -375.081 | AB20: 11000 | AC20: 736.33
M21: MTLRP | N21: Мечел ап | O21: 45617 | P21: 45617 | Q21: 390 | R21: 96.75 | S21: 97.7115 | T21: =Акции_продажа[[#This Row],[Дата продажи]]-Акции_продажа[[#This Row],[Дата покупки]] -> 0 | U21: =(Акции_продажа[[#This Row],[Стоимость продажи]]*Акции_продажа[[#This Row],[Количество акций]])-(Акции_продажа[[#This Row],[Стоимость покуки]]*Акции_продажа[[#This Row],[Количество акций]]) -> 374.985 | V21: =Акции_продажа[[#This Row],[Доход, ₽]]/(Акции_продажа[[#This Row],[Стоимость покуки]]*Акции_продажа[[#This Row],[Количество акций]]) -> 0.009937984496 | Y21: 45593 | Z21: 10630.567 | AA21: -369.433 | AB21: 11000 | AC21: 736.33
M22: SGZH | N22: Сегежа Групп | O22: 45617 | P22: 45617 | Q22: 30000 | R22: 1.369 | S22: 1.288 | T22: =Акции_продажа[[#This Row],[Дата продажи]]-Акции_продажа[[#This Row],[Дата покупки]] -> 0 | U22: =(Акции_продажа[[#This Row],[Стоимость продажи]]*Акции_продажа[[#This Row],[Количество акций]])-(Акции_продажа[[#This Row],[Стоимость покуки]]*Акции_продажа[[#This Row],[Количество акций]]) -> -2430 | V22: =Акции_продажа[[#This Row],[Доход, ₽]]/(Акции_продажа[[#This Row],[Стоимость покуки]]*Акции_продажа[[#This Row],[Количество акций]]) -> -0.05916727538 | Y22: 45594 | Z22: 10636.215 | AA22: -363.785 | AB22: 11000 | AC22: 736.33
M23: T | N23: Тинькофф | O23: 45618 | P23: 45625 | Q23: 5 | R23: 2583.65 | S23: 2395 | T23: =Акции_продажа[[#This Row],[Дата продажи]]-Акции_продажа[[#This Row],[Дата покупки]] -> 7 | U23: =(Акции_продажа[[#This Row],[Стоимость продажи]]*Акции_продажа[[#This Row],[Количество акций]])-(Акции_продажа[[#This Row],[Стоимость покуки]]*Акции_продажа[[#This Row],[Количество акций]]) -> -943.25 | V23: =Акции_продажа[[#This Row],[Доход, ₽]]/(Акции_продажа[[#This Row],[Стоимость покуки]]*Акции_продажа[[#This Row],[Количество акций]]) -> -0.073016856 | Y23: 45595 | Z23: 10641.51 | AA23: -358.49 | AB23: 11000 | AC23: 736.33
M24: MTLR | N24: Мечел ао | O24: 45625 | P24: 45625 | Q24: 200 | R24: 84 | S24: 86.67 | T24: =Акции_продажа[[#This Row],[Дата продажи]]-Акции_продажа[[#This Row],[Дата покупки]] -> 0 | U24: =(Акции_продажа[[#This Row],[Стоимость продажи]]*Акции_продажа[[#This Row],[Количество акций]])-(Акции_продажа[[#This Row],[Стоимость покуки]]*Акции_продажа[[#This Row],[Количество акций]]) -> 534 | V24: =Акции_продажа[[#This Row],[Доход, ₽]]/(Акции_продажа[[#This Row],[Стоимость покуки]]*Акции_продажа[[#This Row],[Количество акций]]) -> 0.03178571429 | Y24: 45596 | Z24: 10643.62 | AA24: -356.38 | AB24: 11000 | AC24: 31.27
M25: SBCN | N25: Сбер.Фонд в юанях УК Первая | O25: 45621 | P25: 45630 | Q25: 820 | R25: 15.79 | S25: 15.34 | T25: =Акции_продажа[[#This Row],[Дата продажи]]-Акции_продажа[[#This Row],[Дата покупки]] -> 9 | U25: =(Акции_продажа[[#This Row],[Стоимость продажи]]*Акции_продажа[[#This Row],[Количество акций]])-(Акции_продажа[[#This Row],[Стоимость покуки]]*Акции_продажа[[#This Row],[Количество акций]]) -> -369 | V25: =Акции_продажа[[#This Row],[Доход, ₽]]/(Акции_продажа[[#This Row],[Стоимость покуки]]*Акции_продажа[[#This Row],[Количество акций]]) -> -0.02849905003 | Y25: 45597 | Z25: 10650.424 | AA25: -349.576 | AB25: 11000 | AC25: 31.27
M26: GMKN | N26: Норильский Никель ГМК | O26: 45644 | P26: 45644 | Q26: 100 | R26: 112.99 | S26: 110 | T26: =Акции_продажа[[#This Row],[Дата продажи]]-Акции_продажа[[#This Row],[Дата покупки]] -> 0 | U26: =(Акции_продажа[[#This Row],[Стоимость продажи]]*Акции_продажа[[#This Row],[Количество акций]])-(Акции_продажа[[#This Row],[Стоимость покуки]]*Акции_продажа[[#This Row],[Количество акций]]) -> -299 | V26: =Акции_продажа[[#This Row],[Доход, ₽]]/(Акции_продажа[[#This Row],[Стоимость покуки]]*Акции_продажа[[#This Row],[Количество акций]]) -> -0.02646251881 | Y26: 45598 | Z26: 10667.812 | AA26: -332.188 | AB26: 11000 | AC26: 31.27
Y27: 45601 | Z27: 10674.238 | AA27: -325.762 | AB27: 11000 | AC27: 31.27
Y28: 45603 | Z28: 10767.572 | AA28: -232.428 | AB28: 11000 | AC28: 112.13
Y29: 45604 | Z29: 10786.472 | AA29: -213.528 | AB29: 11000 | AC29: 112.13
Y30: 45607 | Z30: 10792.142 | AA30: -207.858 | AB30: 11000 | AC30: 112.13
Y31: 45608 | Z31: 10798.19 | AA31: -201.81 | AB31: 11000 | AC31: 112.13
Y32: 45609 | Z32: 10803.86 | AA32: -196.14 | AB32: 11000 | AC32: 112.13
Y33: 45610 | Z33: 11576.186 | AA33: 576.186 | AB33: 11000 | AC33: 878.03
Y34: 45611 | Z34: 15590.73 | AA34: 590.73 | AB34: 15000 | AC34: 15590.73
Y35: 45615 | Z35: 15753.83 | AA35: 753.83 | AB35: 15000 | AC35: 15753.83
Y36: 45617 | Z36: 13430.07 | AA36: -1569.93 | AB36: 15000 | AC36: 13430.07
Y37: 45618 | Z37: 12735.79 | AA37: -2264.21 | AB37: 15000 | AC37: 511.79
Y38: 45621 | Z38: 12220.827 | AA38: -2779.173 | AB38: 15000 | AC38: 2.45
Y39: 45622 | Z39: 11883.95 | AA39: -3116.05 | AB39: 15000 | AC39: 2.45
Y40: 45623 | Z40: 12450.061 | AA40: -2549.939 | AB40: 15000 | AC40: 2.45
Y41: 45624 | Z41: 12355.385 | AA41: -2644.615 | AB41: 15000 | AC41: 2.45
Y42: 45625 | Z42: 12861.82 | AA42: -2138.18 | AB42: 15000 | AC42: 29.64
Y43: 45628 | Z43: 12858.54 | AA43: -2141.46 | AB43: 15000 | AC43: 29.64
Y44: 45629 | Z44: 12661.74 | AA44: -2338.26 | AB44: 15000 | AC44: 29.64
Y45: 45630 | Z45: 12309.1 | AA45: -2690.9 | AB45: 15000 | AC45: 12309.1

Sheet ДИВИДЕНДЫ
B2: Сумма полученных дивидендов | D2: =SUM(Дивиденды[Сумма]) -> 0
B3: Суммарный налог с дивидендов | D3: =SUM(Дивиденды[Налог]) -> 0
B5: НУЖНО вносить данные вручную
B6: ПОЛУЧЕННЫЕ ДИВИДЕНДЫ
B7: Акция | C7: Дата выплаты | D7: Сумма | E7: Налог

Sheet ОБЛИГАЦИИ
B2: Результаты | H2: Вложения | M2: Реинвестирование | Z2: Результаты продаж
B3: Средняя купонная доходность, % годовых | E3: =E4/J5 ->  | H3: Сумма вложений | J3: =SUM(Облигации[Затраты на покупку облигаций]) -> 0 | M3: Сумма полученых купонов | P3: =КУПОНЫ!E2 -> 0 | R3: Комиссия брокера | T3: 0.0003 | Z3: Общий доход/убыток,₽ | AC3: =SUM(Акции_продажа4[Доход, ₽]) -> 0
B4: Годовой доход купонов, руб | E4: =SUM(Облигации[Годовой доход купонов])+SUM(Покупка_новых_облигаций[Годовой доход купонов]) -> 0 | H4: Прочие расходы | J4: =SUM(Облигации[НКД]+Облигации[Комиссия брокера]) -> 0 | M4: Комиссии на покупку | P4: =SUM(Покупка_новых_облигаций[Комиссия брокера]) -> 0 | Z4: Средняя доходность/убыточность, % | AC4: =AVERAGE(Акции_продажа4[Доходность, %]) -> 
B5: Купонный доход к погашению, руб | E5: =SUM(Облигации[Купонный доход к погашению])+SUM(Покупка_новых_облигаций[Купонный доход к погашению]) -> 0 | H5: Общие затраты | J5: =J3+J4 -> 0 | M5: Купленно новых облигаций | P5: =SUM(Покупка_новых_облигаций[Кол-во облигаций]) -> 0
B6: Общий доход к погашению, руб | E6: =SUM(Облигации[Общий доход к погашению])+SUM(Покупка_новых_облигаций[Общий доход к погашению]) -> 0 | M6: Всего облигаций в портфеле | P6: =SUM(Облигации[Кол-во облигаций])+P5 -> 0
B8: НУЖНО вносить данные вручную | K8: НЕ НУЖНО ничего вносить, всё считается автоматически | Z8: НУЖНО вносить данные вручную | AF8: НЕ НУЖНО ничего вносить
B9: ОБЛИГАЦИИ В ПОРТФЕЛЕ | M9: ЗАТРАТЫ | P9: РЕЗУЛЬТАТЫ | Z9: ПРОДАННЫЕ ОБЛИГАЦИИ | AF9: РЕЗУЛЬТАТЫ
B10: Выпуск | C10: Дата покупки | D10: Дата погашения/оферты | E10: Номинал | F10: Цена облигации на момент покупки | G10: Кол-во облигаций | H10: Купон, руб | I10: Количество выплат в год | J10: НКД | K10: Лет до погашения | L10: Доля в портфеле, % | M10: Комиссия брокера | N10: Затраты на покупку облигаций | O10: Общие Затраты | P10: Текущая доходность купона, % годовых | Q10: Текущая доходность купона, % годовых (с НДФЛ) | R10: Годовой доход купонов | S10: Годовых доход купоно (с НДФЛ) | T10: Купонный доход к погашению | U10: Купонный доход к погашению (с НДФЛ) | V10: Общий доход к погашению | W10: Общий доход к погашению (с НДФЛ) | Z10: Выпуск | AA10: Дата покупки | AB10: Дата продажи | AC10: Количество проданных облигаций | AD10: Стоимость покуки | AE10: Стоимость продажи | AF10: Дней прошло | AG10: Доход, ₽ | AH10: Доходность, %
K11: =(Облигации[[#This Row],[Дата погашения/оферты]]-Облигации[[#This Row],[Дата покупки]])/365 -> 0 | L11: =Облигации[[#This Row],[Общие Затраты ]]/J$5 ->  | M11: =Облигации[[#This Row],[Затраты на покупку облигаций]]*T3 -> 0 | N11: =Облигации[[#This Row],[Цена облигации на момент покупки]]*Облигации[[#This Row],[Кол-во облигаций]] -> 0 | O11: =F11*G11+(M11+J11) -> 0 | P11: =R11/(F11*G11) ->  | Q11: =P11*0.87 ->  | R11: =G11*H11*I11 -> 0 | S11: =R11*0.87 -> 0 | T11: =H11*I11*G11*K11 -> 0 | U11: =T11*0.87 -> 0 | V11: =(E11-F11)*G11+T11-M11 -> 0 | W11: =V11*0.87 -> 0 | AF11: =Акции_продажа4[[#This Row],[Дата продажи]]-Акции_продажа4[[#This Row],[Дата покупки]] -> 0 | AG11: =(Акции_продажа4[[#This Row],[Стоимость продажи]]*Акции_продажа4[[#This Row],[Количество проданных облигаций]])-(Акции_продажа4[[#This Row],[Стоимость покуки]]*Акции_продажа4[[#This Row],[Количество проданных облигаций]]) -> 0 | AH11: =(Акции_продажа4[[#This Row],[Доход, ₽]]/Акции_продажа4[[#This Row],[Количество проданных облигаций]])/Акции_продажа4[[#This Row],[Стоимость покуки]] -> 

Sheet КУПОНЫ
B2: Сумма полученных купонов | E2: =SUM(D8:N27) -> 0
B3: Потенциальный налог с купонов | E3: =SUM(Полученные_купоны[Сумма купонов в месяц]*0.13) -> 0
B5: НУЖНО вносить данные вручную | P5: НУЖНО вносить данные вручную | Y5: НЕ НУЖНО ничего вносить, всё считается автоматически
B6: ПОЛУЧЕННЫЕ КУПОНЫ | P6: РЕИНВЕСТИРОВАНИЕ - ПОКУПКА ОБЛИГАЦИЙ НА КУПОНЫ | Y6: РЕЗУЛЬТАТЫ
B7: Месяц выплаты купонов | C7: Сумма купонов в месяц | D7: Облигация 1 | E7: Облигация 2 | F7: Облигация 3 | G7: Облигация 4 | H7: Облигация 5 | I7: Облигация 6 | J7: Облигация 7 | K7: Облигация 8 | L7: Облигация 9 | M7: Облигация 10 | N7: Облигация 11 | P7: Выпуск | Q7: Дата покупки | R7: Дата погашения | S7: Номинал | T7: Цена облигации на момент покупки | U7: Кол-во облигаций | V7: Купон, руб | W7: Количество выплат в год | X7: НКД | Y7: Комиссия брокера | Z7: Лет до погашения | AA7: Текущая доходность купона, % годовых | AB7: Текущая доходность купона, % годовых (с НДФЛ) | AC7: Годовой доход купонов | AD7: Годовых доход купоно (с НДФЛ) | AE7: Купонный доход к погашению | AF7: Купонный доход к погашению (с НДФЛ) | AG7: Общий доход к погашению | AH7: Общий доход к погашению (с НДФЛ)
Y8: =Покупка_новых_облигаций[[#This Row],[Цена облигации на момент покупки]]*Покупка_новых_облигаций[[#This Row],[Кол-во облигаций]]*ОБЛИГАЦИИ!T3 -> 0 | Z8: =(Покупка_новых_облигаций[[#This Row],[Дата погашения]]-Покупка_новых_облигаций[[#This Row],[Дата покупки]])/365 -> 0 | AA8: =Покупка_новых_облигаций[[#This Row],[Годовой доход купонов]]/(Покупка_новых_облигаций[[#This Row],[Цена облигации на момент покупки]]*Покупка_новых_облигаций[[#This Row],[Кол-во облигаций]]) ->  | AB8: =Покупка_новых_облигаций[[#This Row],[Текущая доходность купона, % годовых]]*0.87 ->  | AC8: =Покупка_новых_облигаций[[#This Row],[Кол-во облигаций]]*Покупка_новых_облигаций[[#This Row],[Купон, руб]]*Покупка_новых_облигаций[[#This Row],[Количество выплат в год]] -> 0 | AD8: =Покупка_новых_облигаций[[#This Row],[Годовой доход купонов]]*0.87 -> 0 | AE8: =Покупка_новых_облигаций[[#This Row],[Кол-во облигаций]]*Покупка_новых_облигаций[[#This Row],[Лет до погашения]]*Покупка_новых_облигаций[[#This Row],[Купон, руб]]*Покупка_новых_облигаций[[#This Row],[Количество выплат в год]] -> 0 | AF8: =Покупка_новых_облигаций[[#This Row],[Купонный доход к погашению]]*0.87 -> 0 | AG8: =(Покупка_новых_облигаций[[#This Row],[Номинал]]-Покупка_новых_облигаций[[#This Row],[Цена облигации на момент покупки]])*Покупка_новых_облигаций[[#This Row],[Кол-во облигаций]]+Покупка_новых_облигаций[[#This Row],[Купонный доход к погашению]]-Покупка_новых_облигаций[[#This Row],[Комиссия брокера]] -> 0 | AH8: =Покупка_новых_облигаций[[#This Row],[Общий доход к погашению]]*0.87 -> 0

Sheet БЛОКНОТ
A1: НАИМЕНОВАНИЕ АКЦИИ | B1: ЦЕНА ПОКУПКИ (с комисс.) | C1: ЦЕНА ПРОДАЖИ | D1: КОЛ-ВО АКЦИЙ | E1: ПОТРАЧЕНО СРЕДСТВ | F1: ПОЛУЧЕНО СРЕДСТВ | G1: ДАТА ПОКУПКИ | H1: ДАТА ПРОДАЖИ | I1: ПРИБЫЛЬ / УБЫТКИ | J1: ПРИМЕЧАНИЕ
A2: Сургутнфгз-п | B2: 57.5 | C2: 54.52 | D2: 100 | E2: =B2*D2 -> 5750 | F2: =C2*D2 -> 5452 | G2: 45581 | H2: 45589 | I2: =F2-E2 -> -298
A3: Сбербанк | B3: 0 | C3: 255.3 | D3: 3 | E3: =B3*D3 -> 0 | F3: =C3*D3 -> 765.9 | G3: 45581 | H3: 45579 | I3: =F3-E3 -> 765.9 | J3: АКЦИЯ!!! Открыть счет, купить на 3000р, месяц не выводить деньги, продать 3 акции Сбербанка обычн (их кидают в портыель) в течении 3 месяцев - полученная сумма это ПРИЗ за участие.
A4: Роснефть | B4: 489 | C4: 466.3 | D4: 3 | E4: 1467 | F4: 1398.9 | G4: 45586 | H4: 45589 | I4: -68.1
A5: Сберегательный Фонд УК Первая | B5: 14.0375 | C5: 14.1745 | D5: 756 | E5: 10612.35 | F5: 10715.922 | G5: 45589 | H5: 45611 | I5: 103.572 | J5: БПИФ - 31.10.24 докупил 50шт. + поигрался с плечом :) !!! Берут комиссию за управление (раз в неск. дней) - ОНА ВЫЧИТАЕТСЯ ИЗ СТОИМОСТИ БПИФ (получается после удержания комиссии какбы увеличивается стоимость покупки)
A6: Самолет ГК | B6: 1270 | C6: 1280 | D6: 10 | E6: 12700 | F6: 12800 | G6: 45603 | H6: 45603 | I6: 100 | J6: На самом деле я ШОРТИЛ (поменять местами цену покупки и продажи)
A7: Транснефть ап | B7: 1220 | C7: 1213 | D7: 5 | E7: 6100 | F7: 6065 | G7: 45615 | H7: 45615 | I7: -35
A8: Транснефть ап | B8: 1205 | C8: 1213.5 | D8: 31 | E8: 37355 | F8: 37618.5 | G8: 45615 | H8: 45615 | I8: 263.5 | J8: Опять ШОРТИЛ (поменять местами цену покупки и продажи)
A9: Тинькофф | B9: 2581.72 | C9: 2395 | D9: 5 | E9: 12908.6 | F9: 11975 | G9: 45618 | H9: 45625 | I9: -933.6
A10: Сберегательный Фонд в юанях УК Первая | B10: 15.79 | C10: 15.339 | D10: 820 | E10: 12947.8 | F10: 12577.98 | G10: 45621 | H10: 45630 | I10: -369.82 | J10: Докупил 787шт. (29.11.24)
A11: Мечел ао | B11: 84 | C11: 86.67 | D11: 200 | E11: 16800 | F11: 17334 | G11: 45625 | H11: 45625 | I11: 534 | J11: Покупал в ЛОНГ с плечом
A12: Норильский Никель ГМК | B12: 112.99 | C12: 110 | D12: 100 | E12: 11299 | F12: 11000 | G12: 45630 | H12: 45630 | I12: -299 | J12: Было сделано много сделок (около 20) и шорт и лонг (цена условная - подогнал под результат)
E13: 0 | F13: 0 | I13: 0
E14: 0 | F14: 0 | I14: 0
E15: 0 | F15: 0 | I15: 0
E16: 0 | F16: 0 | I16: 0
E17: 0 | F17: 0 | I17: 0
E18: 0 | F18: 0 | I18: 0
E19: 0 | F19: 0 | I19: 0
E20: 0 | F20: 0 | I20: 0
E21: 0 | F21: 0 | I21: 0
E22: 0 | F22: 0 | I22: 0
E23: 0 | F23: 0 | I23: 0
E24: 0 | F24: 0 | I24: 0
E25: 0 | F25: 0 | I25: 0
E26: 0 | F26: 0 | I26: 0
E27: 0 | F27: 0 | I27: 0
E28: 0 | F28: 0 | I28: 0
